Cogmind - Beta 9.3 @@@ ROGUE MODE // 2019.12.17 @ 13:25:21 // Winter2019/RPGLIKE Player: 3.14 Result: Smashed by cave-in Performance ------------- Evolutions (4) 2000 Regions Visited (21) 4200 Robots Destroyed (384) 1920 Value Destroyed (12655) 12655 Prototype IDs (39) 780 Alien Tech Used (0) 0 Bonus (4516) 4516 TOTAL SCORE: 26071 Bonus ------- High Alert Combat Kills 2345 Follower Combat Kills 1327 Network Hubs Disabled 400 Aligned with FarCom 300 Met Imprinter 300 Destroyed Z-Imprinter 1000 Met R17 at Cetus 500 Friendly Fire -1656 Cogmind --------- Core Integrity 0/600 Matter 369/400 Energy 350/350 System Corruption 2% Temperature Cool (58) Movement Treading (160) Location -6/Hub_04(d) Parts ------- > --- POWER (1) -------- Quantum Reactor > --- PROPULSION (4) --- Centrium Heavy Treads Centrium Heavy Treads > --- UTILITY (6) ------ Experimental Heat Sink Target Analyzer Core Analyzer Damper Plating > --- WEAPON (8) ------- Improved KE Penetrator Improved KE Penetrator Improved KE Penetrator Improved KE Penetrator XL Autogun Array > --- INVENTORY (5) ---- High-capacity Matter Pod (200) High-capacity Matter Pod (127) High-capacity Matter Pod (12) System Backup Module Mini Grenade Launcher Peak State ------------ > --- POWER ------------ Quantum Reactor > --- PROPULSION ------- Centrium Heavy Treads Centrium Heavy Treads > --- UTILITY ---------- Experimental Heat Sink Target Analyzer Core Analyzer Damper Plating > --- WEAPON ----------- Improved KE Penetrator Improved KE Penetrator Improved KE Penetrator Improved KE Penetrator XL Autogun Array > --- INVENTORY -------- High-capacity Matter Pod High-capacity Matter Pod High-capacity Matter Pod System Backup Module Mini Grenade Launcher [Rating: 145] Favorites ----------- Power Cooled Ion Engine Engine Cooled Ion Engine Reactor Zionite Light DM Reactor Propulsion Medium Treads Treads Medium Treads Utility Target Analyzer Device Experimental Heat Sink Storage High-capacity Matter Pod Processor Target Analyzer Protection Damper Plating Weapon Autogun Ballistic Gun Autogun Launcher Grenade Launcher Build | -11 -10 -10 -9 -9 -9 -8 -8 -8 -7 -7 -7 -7 -7 -6 -6 -6 -6 -6 -6 -6 -6 ------- Run | Scr Mat Min Mat Min Exi Min Mat Sto Fac Low Low Zio Dee Pro Fac Was Fac Ext Cet Arc Hub Slots Evolved 15 | 3 1 . 3 . . . 1 1 2 . . . . 1 . 1 . . 2 . . Power . | . . . . . . . . . . . . . . . . . . . . . . Propulsion 3 | 1 . . . . . . . . . . . . . . . . . . 2 . . Utility 5 | . . . . . . . 1 1 1 . . . . 1 . 1 . . . . . Weapon 7 | 2 1 . 3 . . . . . 1 . . . . . . . . . . . . Parts Attached 90 | 6 7 . 31 2 1 3 4 1 10 . . . 4 . 6 3 . 2 7 . 3 Power 5 | 1 1 . 1 . . . . . . . . . 1 . . . . . 1 . . Engine 3 | 1 1 . 1 . . . . . . . . . . . . . . . . . . Core . | . . . . . . . . . . . . . . . . . . . . . . Reactor 2 | . . . . . . . . . . . . . 1 . . . . . 1 . . Propulsion 20 | 2 . . 11 . . . . . 4 . . . . . . 1 . . 2 . . Treads 20 | 2 . . 11 . . . . . 4 . . . . . . 1 . . 2 . . Leg . | . . . . . . . . . . . . . . . . . . . . . . Wheel . | . . . . . . . . . . . . . . . . . . . . . . Hover . | . . . . . . . . . . . . . . . . . . . . . . Flight . | . . . . . . . . . . . . . . . . . . . . . . Utility 19 | . . . 1 . . 1 1 1 2 . . . 1 . 5 2 . 2 . . 3 Device 7 | . . . . . . . 1 . 1 . . . 1 . . 1 . 2 . . 1 Storage 3 | . . . . . . . . . . . . . . . 1 . . . . . 2 Processor 4 | . . . 1 . . 1 . 1 1 . . . . . . . . . . . . Hackware . | . . . . . . . . . . . . . . . . . . . . . . Protection 5 | . . . . . . . . . . . . . . . 4 1 . . . . . Artifact . | . . . . . . . . . . . . . . . . . . . . . . Weapon 46 | 3 6 . 18 2 1 2 3 . 4 . . . 2 . 1 . . . 4 . . Energy Gun . | . . . . . . . . . . . . . . . . . . . . . . Energy Cannon . | . . . . . . . . . . . . . . . . . . . . . . Ballistic Gun 42 | 3 6 . 18 1 1 1 2 . 4 . . . 1 . 1 . . . 4 . . Ballistic Cannon . | . . . . . . . . . . . . . . . . . . . . . . Launcher 4 | . . . . 1 . 1 1 . . . . . 1 . . . . . . . . Special Weapon . | . . . . . . . . . . . . . . . . . . . . . . Impact Weapon . | . . . . . . . . . . . . . . . . . . . . . . Slashing Weapon . | . . . . . . . . . . . . . . . . . . . . . . Piercing Weapon . | . . . . . . . . . . . . . . . . . . . . . . Special Melee Weapon . | . . . . . . . . . . . . . . . . . . . . . . Unidentified Prototypes 6 | . . . . . . . . . 1 . . . 2 . 1 . . . 2 . . Parts Lost . | . . . . . . . . . . . . . . . . . . . . . . Power . | . . . . . . . . . . . . . . . . . . . . . . Propulsion . | . . . . . . . . . . . . . . . . . . . . . . Utility . | . . . . . . . . . . . . . . . . . . . . . . Weapon . | . . . . . . . . . . . . . . . . . . . . . . Highest Loss Streak . | . . . . . . . . . . . . . . . . . . . . . . Average Slot Usage (%) 78 | . 85 87 98 100 82 72 73 75 78 80 80 80 80 76 78 67 64 64 62 63 63 Engine 6 | . 13 12 11 9 9 9 8 7 6 6 6 6 2 . . . . . . . . Reactor 1 | . . . . . . . . . . . . . 3 6 6 5 5 5 5 5 5 Treads 15 | . 26 25 23 18 18 18 16 15 13 13 13 13 13 12 12 6 5 5 8 10 10 Device 3 | . . . . . . . 5 7 4 6 6 6 6 6 6 5 5 5 5 5 5 Processor 12 | . . . 11 9 9 9 8 11 18 20 20 20 20 18 18 12 11 11 10 10 10 Protection 1 | . . . . . . . . . . . . . . . 3 5 5 5 5 5 5 Ballistic Gun 37 | . 45 50 50 62 46 35 33 31 33 33 33 33 32 31 31 29 29 29 26 26 26 Naked Turns . | . . . . . . . . . . . . . . . . . . . . . . Heaviest Build 104 | 8 15 15 29 29 32 32 37 37 41 40 40 40 40 38 48 93 83 83 104 104 104 Greatest Support 160 | 40 40 40 44 44 44 44 44 44 56 56 56 56 56 56 56 70 70 70 160 160 160 Greatest Overweight (x) 5 | . . . 5 . . . . . 1 . . . . . . 1 1 1 1 . . Average Overweight (x) . | . . . . . . . . . . . . . . . . . 1 1 . . . Largest Inventory Capacity 5 | . 2 2 3 3 3 3 4 4 4 4 4 4 4 4 4 4 4 5 5 5 5 Average Capacity 3 | . 1 2 2 3 3 3 3 4 4 4 4 4 4 4 4 4 4 4 5 5 5 Most Carried 5 | . 2 2 3 3 3 3 4 4 4 4 4 4 4 4 4 4 4 5 5 5 5 Average Carried 3 | . 1 2 2 3 3 3 3 3 3 4 4 3 4 3 4 3 4 4 5 5 4 Final Capacity 5 | . 2 2 3 3 3 3 4 4 4 4 4 4 4 4 4 4 4 5 5 5 5 Final Carried 5 | . 2 2 3 3 3 3 3 3 4 4 4 4 4 4 4 4 4 5 5 5 5 Class Distribution -------------------- 56% | Executioner 16% | Scavenger-Executioner 12% | Tank 11% | Gunner Dominant Class ---------------- Tank | -10/Materials Tank | -10/Mines Gunner | -9/Materials Executioner | -9/Mines Executioner | -9/Exiles Executioner | -8/Mines Executioner | -8/Materials Executioner | -8/Storage Executioner | -7/Factory Executioner | -7/Lower Caves Executioner | -7/Lower Caves Executioner | -7/Zion Executioner | -7/Deep Caves Executioner | -6/Proximity Caves Executioner | -6/Factory Scavenger-Executioner | -6/Waste Scavenger-Executioner | -6/Factory Scavenger-Executioner | -6/Extension Scavenger-Executioner | -6/Cetus Scavenger-Executioner | -6/Archives Scavenger-Executioner | -6/Hub_04(d) Resources | -11 -10 -10 -9 -9 -9 -8 -8 -8 -7 -7 -7 -7 -7 -6 -6 -6 -6 -6 -6 -6 -6 ----------- Run | Scr Mat Min Mat Min Exi Min Mat Sto Fac Low Low Zio Dee Pro Fac Was Fac Ext Cet Arc Hub Matter Collected 13008 | 270 721 228 1260 208 119 552 1360 727 1257 450 660 69 365 985 869 515 190 428 712 217 846 Remotely . | . . . . . . . . . . . . . . . . . . . . . . Salvage Created 16795 | 67 928 258 1577 120 . 708 1672 1069 1854 548 841 . 365 534 1451 630 . 671 811 352 2339 Parts 855 | 3 56 20 101 3 . 34 99 55 108 23 46 . 18 20 65 24 . 23 47 9 101 Haulers Intercepted 23 | . 2 . 6 . . . 6 5 3 . . . . . 1 . . . . . . Recyclers Shooed 7 | . 3 . 3 . . . . . . . . . . . . . . 1 . . . Parts Field Recycled . | . . . . . . . . . . . . . . . . . . . . . . Retrieved Matter . | . . . . . . . . . . . . . . . . . . . . . . Parts Self-Destructed 81 | . . . . . . . . . . 22 39 . . 20 . . . . . . . Prevented . | . . . . . . . . . . . . . . . . . . . . . . Kills | -11 -10 -10 -9 -9 -9 -8 -8 -8 -7 -7 -7 -7 -7 -6 -6 -6 -6 -6 -6 -6 -6 ------- Run | Scr Mat Min Mat Min Exi Min Mat Sto Fac Low Low Zio Dee Pro Fac Was Fac Ext Cet Arc Hub Combat Hostiles Destroyed 266 | . 19 8 28 11 . 13 31 18 22 9 17 . 9 8 15 6 . 8 11 4 29 Guns 246 | . 19 8 28 2 . 9 27 18 21 9 17 . 7 8 15 6 . 8 11 4 29 AOE 20 | . . . . 9 . 4 4 . 1 . . . 2 . . . . . . . . Classes Destroyed 25 | 1 5 2 4 . . 1 1 . 2 2 2 . 1 . . 1 . 1 1 . 1 Worker 18 | . 1 . 1 . . . 2 . 7 . . . . . 3 . . . . . 4 Builder 19 | . . . 1 1 . 2 2 3 5 . . . . . 2 . . . . . 3 Tunneler 5 | . . 2 . . . 1 1 . 1 . . . . . . . . . . . . Hauler 23 | . 2 . 6 . . . 6 5 3 . . . . . 1 . . . . . . Recycler 25 | 1 2 . 3 1 . 2 1 1 4 . . . . . 6 . . 1 . . 3 Carrier 1 | . . . . . . . . . . . . . . . . . . . 1 . . Minesweeper 1 | . . . . . . . . . . . 1 . . . . . . . . . . Mechanic 1 | . . . . . . . 1 . . . . . . . . . . . . . . Operator 3 | . 2 . . . . . 1 . . . . . . . . . . . . . . Watcher 13 | . 1 . 5 . . . 3 . 3 . . . . . . . . . . . 1 Swarmer 46 | . . . 7 . . 6 10 4 1 4 7 . . . . . . . 3 . 4 Grunt 120 | . 19 7 11 . . 6 14 6 9 4 9 . . 8 10 . . 4 . . 13 Brawler 9 | . . . 3 . . . 2 1 2 . . . . . 1 . . . . . . Duelist 1 | . . . . . . . . . 1 . . . . . . . . . . . . Protector 4 | . . . . . . . . . . . . . . . . . . . . . 4 Sentry 34 | . . . 7 . . . 5 7 4 . 1 . . . 1 . . 4 . 4 1 Hunter 5 | . . . . . . 1 . . 3 . . . . . . . . . 1 . . Programmer 6 | . . . . . . . . . 2 . . . . . 3 . . . . . 1 Behemoth 1 | . . . . . . . . . . 1 . . . . . . . . . . . Compactor 6 | . . . . . . . . . . . . . . . . 6 . . . . . Cetus Guard 7 | . . . . . . . . . . . . . . . . . . . 7 . . Lightning 6 | . . . . . . . . . . . . . . . . . . . . . 6 Z-Light 2 | . . . . . . . . . . . . . 2 . . . . . . . . Samaritan 3 | . . . . . . . . . . . 3 . . . . . . . . . . Assembled 18 | . . 1 . 11 . . . . . . . . 6 . . . . . . . . Thug 2 | . . . . . . . . . . . . . . . . . . . 2 . . Savage 1 | . . . . . . . . . . . . . . . . . . 1 . . . Butcher 1 | . . . . . . . . . . . . . . . . . . . 1 . . Martyr 1 | . . . . . . . . . . . . . . . . . . 1 . . . Mutant 1 | . . . . . . . . . . 1 . . . . . . . . . . . Best Kill Streak 21 | 1 4 3 10 12 . 5 11 7 6 4 10 . 3 4 11 6 . 2 5 4 21 Combat Bots Only 14 | . 4 3 7 11 . 3 10 7 4 4 10 . 3 4 4 6 . 2 4 4 14 Max Kills in Single Turn 6 | 1 2 2 3 3 . 3 3 2 3 3 2 . 2 2 3 1 . 2 2 1 6 Gunslinging 2 | . 1 1 2 . . 1 1 1 . 2 1 . . 1 1 . . 1 1 . 1 Exploded 3 | . . . . 3 . 2 3 . 1 . . . 2 . . . . . . . . Melee . | . . . . . . . . . . . . . . . . . . . . . . Uniques/NPCs Destroyed 1 | . . . . . . . . . . . . . 1 . . . . . . . . Z-Imprinter (-7/Deep Caves) Combat | -11 -10 -10 -9 -9 -9 -8 -8 -8 -7 -7 -7 -7 -7 -6 -6 -6 -6 -6 -6 -6 -6 -------- Run | Scr Mat Min Mat Min Exi Min Mat Sto Fac Low Low Zio Dee Pro Fac Was Fac Ext Cet Arc Hub Damage Taken 5493 | . 683 147 643 247 . 122 136 209 390 167 152 . 483 259 262 . . 303 311 71 908 Core 4325 | . 550 117 507 200 . 94 106 161 302 135 119 . 380 206 207 . . 233 242 56 710 Absorbed by Shields 181 | . . . . . . . 48 6 . . . . . . . . . . 127 . . Reduced by Siege Mode 2 | . . . . . . . . . . . . . . . . . . . . . 2 Redirected to Core 3896 | . 446 97 444 158 . 94 87 141 298 109 107 . 358 176 188 . . 233 230 56 674 Core Remaining (%) 86 | 100 . 97 . . . 90 . 98 . . . . . 47 . . . . . . . Volleys Fired 488 | 5 61 18 67 8 . 21 53 28 37 15 22 . 21 13 28 15 . 14 21 7 34 Largest 7 | 3 4 4 7 7 . 4 4 4 5 5 5 . 5 5 5 5 . 5 5 5 5 Hottest 200 | 60 80 80 161 161 . 129 129 129 161 161 161 . 161 161 163 163 . 163 193 200 200 Shots Fired 2080 | 15 195 72 273 26 . 78 203 112 176 75 110 . 86 65 140 75 . 70 105 35 169 Gun 2069 | 15 195 72 273 21 . 76 200 112 176 75 110 . 85 65 140 75 . 70 105 35 169 Cannon . | . . . . . . . . . . . . . . . . . . . . . . Launcher 11 | . . . . 5 . 2 3 . . . . . 1 . . . . . . . . Special . | . . . . . . . . . . . . . . . . . . . . . . Kinetic 2069 | 15 195 72 273 21 . 76 200 112 176 75 110 . 85 65 140 75 . 70 105 35 169 Thermal . | . . . . . . . . . . . . . . . . . . . . . . Explosive 11 | . . . . 5 . 2 3 . . . . . 1 . . . . . . . . Electromagnetic . | . . . . . . . . . . . . . . . . . . . . . . Robot Hit Streak 50 | 4 15 11 25 3 . 20 25 21 22 15 18 . 8 12 13 30 . 50 21 10 25 Robot Miss Streak 6 | 2 5 4 4 2 . 3 5 6 2 6 4 . 4 2 2 1 . 3 6 3 2 Penetration Max 1 | . . . . . . . . . . . . . . . . . . . 1 . 1 Secondary Targets 60 | . 5 2 7 2 . 1 5 4 2 2 6 . 1 3 1 . . 1 5 . 13 Max Gunslinging Chain 2 | . 1 1 2 1 . 1 1 2 1 2 2 . 1 1 1 . . 1 1 . 2 Shots Hit Robots 1433 | 8 126 45 183 9 . 52 138 68 124 46 79 . 54 51 102 70 . 57 77 23 121 Core Hits 723 | 2 54 16 70 30 . 29 73 32 69 17 35 . 18 21 58 27 . 34 37 10 91 Critical Hits 93 | . . . 2 . . . 1 2 6 3 2 . 1 2 8 4 . 5 15 4 38 Critical Kills 33 | . . . 2 . . . . . 2 2 . . . 1 2 . . . 4 2 18 Critical Parts Destroyed 48 | . . . . . . . 1 1 4 1 2 . 1 1 6 . . 3 8 1 19 Melee Attacks . | . . . . . . . . . . . . . . . . . . . . . . Impact . | . . . . . . . . . . . . . . . . . . . . . . Slashing . | . . . . . . . . . . . . . . . . . . . . . . Piercing . | . . . . . . . . . . . . . . . . . . . . . . Sneak Attacks . | . . . . . . . . . . . . . . . . . . . . . . Combat Hostiles . | . . . . . . . . . . . . . . . . . . . . . . Follow-up Attacks . | . . . . . . . . . . . . . . . . . . . . . . Damage Inflicted 38979 | 73 1413 481 2321 770 . 1315 4117 2068 4166 1376 1811 . 1308 1349 3321 2564 . 2086 2722 720 4998 Guns 36367 | 73 1408 458 2229 119 . 1059 3661 2042 3816 1376 1811 . 1194 1349 3314 2564 . 2075 2722 720 4377 Cannons . | . . . . . . . . . . . . . . . . . . . . . . Explosions 2382 | . . . 44 639 . 247 425 . 324 . . . 114 . . . . . . . 589 Melee . | . . . . . . . . . . . . . . . . . . . . . . Ramming 230 | . 5 23 48 12 . 9 31 26 26 . . . . . 7 . . 11 . . 32 Kinetic 36367 | 73 1408 458 2229 119 . 1059 3661 2042 3816 1376 1811 . 1194 1349 3314 2564 . 2075 2722 720 4377 Thermal 183 | . . . . . . 97 . . 86 . . . . . . . . . . . . Explosive 1566 | . . . . 639 . 150 425 . 238 . . . 114 . . . . . . . . Electromagnetic 633 | . . . 44 . . . . . . . . . . . . . . . . . 589 Impact . | . . . . . . . . . . . . . . . . . . . . . . Slashing . | . . . . . . . . . . . . . . . . . . . . . . Piercing . | . . . . . . . . . . . . . . . . . . . . . . Highest Corruption 2 | . . . . . . . . . 2 2 2 2 . . . . . . . . 2 Average Corruption 1 | . . . . . . . . . 1 2 2 2 . . . . . . . . 1 Corruption Purged . | . . . . . . . . . . . . . . . . . . . . . . Effects 32 | . . . . . . . . . 15 12 2 1 . . . . . . . . 2 Message Errors 11 | . . . . . . . . . 6 5 . . . . . . . . . . . Heat Flow Errors 2 | . . . . . . . . . . 2 . . . . . . . . . . . Energy Discharges 5 | . . . . . . . . . 3 1 . 1 . . . . . . . . . Data Loss (minor) 5 | . . . . . . . . . 2 2 1 . . . . . . . . . . Targeting Errors 8 | . . . . . . . . . 4 2 1 . . . . . . . . . 1 Weapon Failures 1 | . . . . . . . . . . . . . . . . . . . . . 1 Overload Shots . | . . . . . . . . . . . . . . . . . . . . . . Overflow Damage 35 | . . . . . . 3 30 . . . . . . . . . . . . . 2 Projectiles . | . . . . . . . . . . . . . . . . . . . . . . Explosions 33 | . . . . . . 3 30 . . . . . . . . . . . . . . Melee 2 | . . . . . . . . . . . . . . . . . . . . . 2 Knockbacks 3 | . . . 1 . . . . . 1 . . . . . . . . . . . 1 Impact 3 | . . . 1 . . . . . 1 . . . . . . . . . . . 1 Kinetic . | . . . . . . . . . . . . . . . . . . . . . . Secondary . | . . . . . . . . . . . . . . . . . . . . . . Self-Inflicted Damage 9 | . . . . . . . . . . . . . . . . . . . . . 9 Shots 1 | . . . . . . . . . . . . . . . . . . . . . 1 Rammed 45 | . 2 4 11 1 . 2 5 7 6 . . . . . 2 . . 3 . . 2 Targets Rammed 49 | . 2 5 12 1 . 2 5 8 7 . . . . . 2 . . 3 . . 2 Kicked . | . . . . . . . . . . . . . . . . . . . . . . Crushed 4 | . . 1 1 . . . . 1 1 . . . . . . . . . . . . Highest Temperature 495 | . 124 98 126 93 . 277 312 274 267 312 495 . 276 124 156 166 . 151 337 49 80 Average Temperature 64 | . 28 39 37 45 . 100 90 98 66 118 170 . 117 76 57 51 . 70 94 31 34 Received Heat Transfer 1686 | . 393 87 249 . . 36 78 78 81 18 30 . 182 147 84 . . 90 13 18 102 Effects 5 | . . . . . . . 1 . . . 4 . . . . . . . . . . Shutdowns 1 | . . . . . . . . . . . 1 . . . . . . . . . . Energy Bleed 1 | . . . . . . . 1 . . . . . . . . . . . . . . Damage (major) 3 | . . . . . . . . . . . 3 . . . . . . . . . . Siege Activations 2 | . . . . . . . . . . . . . . . . . . . . . 2 Total Turns 30 | . . . . . . . . . . . . . . . . . . . . . 30 Longest Duration 21 | . . . . . . . . . . . . . . . . . . . . . 21 Robots Corrupted . | . . . . . . . . . . . . . . . . . . . . . . Combat Hostiles . | . . . . . . . . . . . . . . . . . . . . . . Parts Fried 10 | . . . . . . . . . . . . . . . . . . . 3 . 7 Impact Corruptions 1 | . . . . . . . . . . . . . . . . . . . . . 1 Robots Melted . | . . . . . . . . . . . . . . . . . . . . . . Combat Hostiles . | . . . . . . . . . . . . . . . . . . . . . . Parts Melted . | . . . . . . . . . . . . . . . . . . . . . . Heat Transferred 150 | . . . . . . 100 . . 50 . . . . . . . . . . . . Parts Sabotaged . | . . . . . . . . . . . . . . . . . . . . . . Parts Stolen . | . . . . . . . . . . . . . . . . . . . . . . Parts Stripped . | . . . . . . . . . . . . . . . . . . . . . . Power Chain Reactions 1 | . . . . . . . . . . . . . . . . . . . . . 1 Missiles Intercepted . | . . . . . . . . . . . . . . . . . . . . . . Alert | -11 -10 -10 -9 -9 -9 -8 -8 -8 -7 -7 -7 -7 -7 -6 -6 -6 -6 -6 -6 -6 -6 ------- Run | Scr Mat Min Mat Min Exi Min Mat Sto Fac Low Low Zio Dee Pro Fac Was Fac Ext Cet Arc Hub Peak Influence 1423 | 5 341 179 530 206 . 238 729 781 776 . . . . . 403 140 426 1143 994 501 1423 Average Influence 324 | 1 195 51 235 190 . 130 393 505 487 . . . . . 185 110 226 531 815 468 365 Maximum Alert Level 4 | . 1 . 2 1 . 1 3 3 3 . . . . . 2 . 2 4 3 2 4 Low Security (%) 39 | 100 41 100 46 70 . 62 38 . 1 . . . . . 47 100 48 11 . . 38 Level 1 26 | . 58 . 31 29 . 37 10 33 25 . . . . . 51 . 24 34 . 17 31 Level 2 25 | . . . 22 . . . 37 47 69 . . . . . . . 27 23 47 82 20 Level 3 7 | . . . . . . . 13 18 3 . . . . . . . . 29 52 . . Level 4 . | . . . . . . . . . . . . . . . . . . 2 . . 9 Level 5 . | . . . . . . . . . . . . . . . . . . . . . . High Security . | . . . . . . . . . . . . . . . . . . . . . . Max Security . | . . . . . . . . . . . . . . . . . . . . . . Squads Dispatched 37 | . 6 . 2 . . 1 2 2 10 . . . . . 5 . 1 4 . . 4 Investigation 8 | . 2 . 1 . . . 1 . 3 . . . . . . . . 1 . . . Extermination 5 | . . . . . . . . . 2 . . . . . 1 . 1 . . . 1 Reinforcement 19 | . 4 . 1 . . 1 1 1 4 . . . . . 4 . . 2 . . 1 Assault 3 | . . . . . . . . . 1 . . . . . . . . 1 . . 1 Garrison 2 | . . . . . . . . 1 . . . . . . . . . . . . 1 Intercept . | . . . . . . . . . . . . . . . . . . . . . . Construction Impeded 6 | . . . . . . 1 . . 2 . . . . . 1 . . 1 . . 1 Haulers Reinforced 3 | . . . . . . . . . 1 . . . . . 2 . . . . . . Stealth | -11 -10 -10 -9 -9 -9 -8 -8 -8 -7 -7 -7 -7 -7 -6 -6 -6 -6 -6 -6 -6 -6 --------- Run | Scr Mat Min Mat Min Exi Min Mat Sto Fac Low Low Zio Dee Pro Fac Was Fac Ext Cet Arc Hub Distress Signals 15 | . 1 . 3 . . . 4 1 1 . . . . . 1 . . 1 2 . 1 Communications Jammed . | . . . . . . . . . . . . . . . . . . . . . . Distress Signals . | . . . . . . . . . . . . . . . . . . . . . . Times Spotted 371 | . 34 8 39 20 . 14 46 21 28 8 21 . 9 9 18 6 5 28 13 4 40 Peak Tracking Total 19 | . 4 3 7 19 . 3 5 5 3 3 4 . 3 4 5 4 2 5 5 1 19 Tactical Retreats 12 | . . . 1 . . . 3 . . . 3 . . 1 1 . . 1 . . 2 Traps | -11 -10 -10 -9 -9 -9 -8 -8 -8 -7 -7 -7 -7 -7 -6 -6 -6 -6 -6 -6 -6 -6 ------- Run | Scr Mat Min Mat Min Exi Min Mat Sto Fac Low Low Zio Dee Pro Fac Was Fac Ext Cet Arc Hub Traps Triggered 24 | . 2 . 6 . . . 1 2 4 . . . . . 2 . 1 6 . . . Indirectly . | . . . . . . . . . . . . . . . . . . . . . . Trap Hack Attempts . | . . . . . . . . . . . . . . . . . . . . . . Triggered . | . . . . . . . . . . . . . . . . . . . . . . Disarmed . | . . . . . . . . . . . . . . . . . . . . . . Reprogrammed . | . . . . . . . . . . . . . . . . . . . . . . Reused . | . . . . . . . . . . . . . . . . . . . . . . Traps Extracted . | . . . . . . . . . . . . . . . . . . . . . . Installed . | . . . . . . . . . . . . . . . . . . . . . . Triggered . | . . . . . . . . . . . . . . . . . . . . . . Machines | -11 -10 -10 -9 -9 -9 -8 -8 -8 -7 -7 -7 -7 -7 -6 -6 -6 -6 -6 -6 -6 -6 ---------- Run | Scr Mat Min Mat Min Exi Min Mat Sto Fac Low Low Zio Dee Pro Fac Was Fac Ext Cet Arc Hub Machines Disabled 63 | . . . 4 . . 4 3 2 7 . . . 2 . 5 . 1 8 . 4 23 Max in Single Turn 14 | . . . 3 . . 4 1 1 3 . . . 1 . 3 . . 1 . 1 14 Garrison Access 1 | . . . . . . . . . . . . . . . . . . . . . 1 Network Hub 2 | . . . . . . . . . . . . . . . . . . . . . 2 Machines Sabotaged . | . . . . . . . . . . . . . . . . . . . . . . Garrisons Compromised . | . . . . . . . . . . . . . . . . . . . . . . Overloaded Fab Kills . | . . . . . . . . . . . . . . . . . . . . . . Fab Network Shutdowns . | . . . . . . . . . . . . . . . . . . . . . . Hacking | -11 -10 -10 -9 -9 -9 -8 -8 -8 -7 -7 -7 -7 -7 -6 -6 -6 -6 -6 -6 -6 -6 --------- Run | Scr Mat Min Mat Min Exi Min Mat Sto Fac Low Low Zio Dee Pro Fac Was Fac Ext Cet Arc Hub Machines Accessed 45 | . 2 . 7 . 2 . 5 6 5 1 . 1 . . 1 . 1 11 1 . 2 Terminals 35 | . 2 . 6 . . . 3 6 2 . . . . . 1 . 1 11 1 . 2 Fabricators 3 | . . . . . . . . . 3 . . . . . . . . . . . . Repair Stations 2 | . . . 1 . . . 1 . . . . . . . . . . . . . . Recycling Units . | . . . . . . . . . . . . . . . . . . . . . . Scanalyzers 1 | . . . . . . . 1 . . . . . . . . . . . . . . Garrison Access . | . . . . . . . . . . . . . . . . . . . . . . Total Hacks 123 | . 8 . 24 . 2 . 12 14 14 1 . 3 . . 3 . 3 29 2 . 8 Successful 72 | . 5 . 13 . 2 . 7 6 5 1 . 3 . . 1 . 1 22 . . 6 Failed 51 | . 3 . 11 . . . 5 8 9 . . . . . 2 . 2 7 2 . 2 Catastrophic 5 | . . . 2 . . . 1 1 . . . . . . . . . 1 . . . Database Lockouts . | . . . . . . . . . . . . . . . . . . . . . . Manual 58 | . 5 . 16 . 1 . 2 6 . . . 5 . . . . 3 16 . . 4 Terminals 98 | . 8 . 19 . . . 8 14 4 . . . . . 3 . 3 29 2 . 8 Fabricators 10 | . . . . . . . . . 10 . . . . . . . . . . . . Repair Stations 7 | . . . 5 . . . 2 . . . . . . . . . . . . . . Recycling Units . | . . . . . . . . . . . . . . . . . . . . . . Scanalyzers 2 | . . . . . . . 2 . . . . . . . . . . . . . . Garrison Access . | . . . . . . . . . . . . . . . . . . . . . . Terminal Hacks 36 | . 2 . 2 . 2 . 3 4 2 1 . 3 . . 1 . 1 11 . . 4 Record 1 | . . . . . 1 . . . . . . . . . . . . . . . . Part Schematic 4 | . . . . . . . . . . . . 3 . . . . . 1 . . . Robot Analysis 2 | . . . . . . . . 1 . . . . . . . . . . . . 1 Prototype ID Bank 6 | . . . 1 . . . 1 1 1 . . . . . . . . 1 . . 1 Open Door 9 | . . . . . . . . 1 . 1 . . . . 1 . . 6 . . . Branch Access Points 1 | . 1 . . . . . . . . . . . . . . . . . . . . Terminal Index 1 | . . . . . . . . . . . . . . . . . . . . . 1 Fabricator Index 1 | . . . . . . . . . 1 . . . . . . . . . . . . Alert Level 3 | . . . . . . . 1 . . . . . . . . . . 1 . . 1 Unreport Threat 5 | . . . 1 . . . 1 1 . . . . . . . . 1 1 . . . Locate Traps 1 | . . . . . . . . . . . . . . . . . . 1 . . . Zone Layout 1 | . 1 . . . . . . . . . . . . . . . . . . . . EX-Prototype ID Bank 1 | . . . . . 1 . . . . . . . . . . . . . . . . Fabricator Hacks 3 | . . . . . . . . . 3 . . . . . . . . . . . . Load Schematic 2 | . . . . . . . . . 2 . . . . . . . . . . . . Build 1 | . . . . . . . . . 1 . . . . . . . . . . . . Repair Station Hacks 6 | . . . 4 . . . 2 . . . . . . . . . . . . . . Scan Component 3 | . . . 2 . . . 1 . . . . . . . . . . . . . . Repair 3 | . . . 2 . . . 1 . . . . . . . . . . . . . . Recycling Unit Hacks . | . . . . . . . . . . . . . . . . . . . . . . Scanalyzer 2 | . . . . . . . 2 . . . . . . . . . . . . . . Insert Component 1 | . . . . . . . 1 . . . . . . . . . . . . . . Analyze 1 | . . . . . . . 1 . . . . . . . . . . . . . . Garrison Access Hacks . | . . . . . . . . . . . . . . . . . . . . . . Unauthorized Hacks 66 | . 8 . 18 . . . 2 7 . . . . . . . . . 26 . . 5 Terminals 25 | . 3 . 7 . . . . 2 . . . . . . . . . 11 . . 2 Track 5 | . 1 . 2 . . . . 1 . . . . . . . . . 1 . . . Botnet 20 | . 2 . 5 . . . . 1 . . . . . . . . . 10 . . 2 Fabricators . | . . . . . . . . . . . . . . . . . . . . . . Repair Stations . | . . . . . . . . . . . . . . . . . . . . . . Recycling Units . | . . . . . . . . . . . . . . . . . . . . . . Scanalyzers . | . . . . . . . . . . . . . . . . . . . . . . Garrison Access . | . . . . . . . . . . . . . . . . . . . . . . Data Cores Recovered 1 | . . . . . . . 1 . . . . . . . . . . . . . . Used . | . . . . . . . . . . . . . . . . . . . . . . Hacking Detections 29 | . 1 . 7 . . . 3 5 4 . . . . . 1 . 1 6 1 . . Full Trace Events 5 | . . . 1 . . . . . 3 . . . . . . . . 1 . . . Feedback Events 1 | . . . . . . . . . 1 . . . . . . . . . . . . Corruption 1 | . . . . . . . . . 1 . . . . . . . . . . . . Feedback Blocked . | . . . . . . . . . . . . . . . . . . . . . . Robot Schematics Acquired . | . . . . . . . . . . . . . . . . . . . . . . Robots Built . | . . . . . . . . . . . . . . . . . . . . . . Matter . | . . . . . . . . . . . . . . . . . . . . . . Time . | . . . . . . . . . . . . . . . . . . . . . . Total Robot Build Rating . | . . . . . . . . . . . . . . . . . . . . . . Part Schematics Acquired 5 | . . . . . . . 1 . . . . 3 . . . . . 1 . . . Parts Built 1 | . . . . . . . . . 1 . . . . . . . . . . . . Matter 219 | . . . . . . . . . 219 . . . . . . . . . . . . Time 58 | . . . . . . . . . 58 . . . . . . . . . . . . Total Part Build Rating 3 | . . . . . . . . . 3 . . . . . . . . . . . . Parts Repaired 3 | . . . 2 . . . 1 . . . . . . . . . . . . . . Time 96 | . . . 64 . . . 32 . . . . . . . . . . . . . . Parts Recycled . | . . . . . . . . . . . . . . . . . . . . . . Recycled Matter . | . . . . . . . . . . . . . . . . . . . . . . Retrieved Matter . | . . . . . . . . . . . . . . . . . . . . . . Retrieved Components . | . . . . . . . . . . . . . . . . . . . . . . Parts Scanalyzed 1 | . . . . . . . 1 . . . . . . . . . . . . . . Part Schematics Acquired 1 | . . . . . . . 1 . . . . . . . . . . . . . . Parts Damaged . | . . . . . . . . . . . . . . . . . . . . . . Bothacking | -11 -10 -10 -9 -9 -9 -8 -8 -8 -7 -7 -7 -7 -7 -6 -6 -6 -6 -6 -6 -6 -6 ------------ Run | Scr Mat Min Mat Min Exi Min Mat Sto Fac Low Low Zio Dee Pro Fac Was Fac Ext Cet Arc Hub Used RIF Installer . | . . . . . . . . . . . . . . . . . . . . . . Robots Hacked . | . . . . . . . . . . . . . . . . . . . . . . Non-combat . | . . . . . . . . . . . . . . . . . . . . . . Combat . | . . . . . . . . . . . . . . . . . . . . . . Robot Hacks Applied . | . . . . . . . . . . . . . . . . . . . . . . Relay Couplers Released 1 | . . . . . . . . . . . . . . . 1 . . . . . . Programmers 1 | . . . . . . . . . . . . . . . 1 . . . . . . Robots Rewired 11 | . . . . . . . . . . . . . . . . . . 11 . . . Allies Hacked . | . . . . . . . . . . . . . . . . . . . . . . Hacks Repelled . | . . . . . . . . . . . . . . . . . . . . . . Allies | -11 -10 -10 -9 -9 -9 -8 -8 -8 -7 -7 -7 -7 -7 -6 -6 -6 -6 -6 -6 -6 -6 -------- Run | Scr Mat Min Mat Min Exi Min Mat Sto Fac Low Low Zio Dee Pro Fac Was Fac Ext Cet Arc Hub Total Allies 39 | . . . . 2 . . . . . . . . . . . 19 . 18 . . . Largest Group 19 | . . . . 2 1 . . . . . . . . . . 19 15 17 6 2 1 Highest-Rated Group 731 | . . . . 39 31 . . . . . . . . . . 714 572 731 362 186 30 Highest-Rated Ally 156 | . . . . 31 31 . . . . . . . . . . 50 50 156 156 156 30 Total Orders 6 | . . . . . . 5 . . . . . . . . . . . 1 . . . STAY 1 | . . . . . . . . . . . . . . . . . . 1 . . . FOLLOW 3 | . . . . . . 3 . . . . . . . . . . . . . . . EXPLORE 1 | . . . . . . 1 . . . . . . . . . . . . . . . RETURN 1 | . . . . . . 1 . . . . . . . . . . . . . . . Ally Attacks 284 | . . . . 15 . . . . . . . . . . . . 28 224 17 . . Total Damage 7188 | . . . . 149 . . . . . . . . . . . . 1001 5570 468 . . Kills 50 | . . . . 3 . . . . . . . . . . . . 10 33 4 . . Allies Corrupted 1 | . . . . . . . . . . . . . . . . . . 1 . . . Allies Melted . | . . . . . . . . . . . . . . . . . . . . . . Intel | -11 -10 -10 -9 -9 -9 -8 -8 -8 -7 -7 -7 -7 -7 -6 -6 -6 -6 -6 -6 -6 -6 ------- Run | Scr Mat Min Mat Min Exi Min Mat Sto Fac Low Low Zio Dee Pro Fac Was Fac Ext Cet Arc Hub Robot Analysis Total 2 | . . . . . . . . 1 . . . . . . . . . . . . 1 Derelict Logs Recovered 10 | . . 2 . 3 . . . . . 2 . 1 . 2 . . . . . . . Drone Launches 1 | . . . . . 1 . . . . . . . . . . . . . . . . Drone Recoveries . | . . . . . . . . . . . . . . . . . . . . . . Exploration | -11 -10 -10 -9 -9 -9 -8 -8 -8 -7 -7 -7 -7 -7 -6 -6 -6 -6 -6 -6 -6 -6 ------------- Run | Scr Mat Min Mat Min Exi Min Mat Sto Fac Low Low Zio Dee Pro Fac Was Fac Ext Cet Arc Hub Turns Passed 16390 | 92 1123 1166 1719 347 442 577 1287 577 1815 626 625 1296 447 520 510 504 285 1364 405 135 528 Spaces Moved 8808 | 49 531 502 842 222 301 352 768 322 1047 366 353 810 248 296 243 250 154 644 185 71 252 Core 10 | 9 . . 1 . . . . . . . . . . . . . . . . . . Treads 8798 | 40 531 502 841 222 301 352 768 322 1047 366 353 810 248 296 243 250 154 644 185 71 252 Legs . | . . . . . . . . . . . . . . . . . . . . . . Wheels . | . . . . . . . . . . . . . . . . . . . . . . Hover . | . . . . . . . . . . . . . . . . . . . . . . Flight . | . . . . . . . . . . . . . . . . . . . . . . Fastest Speed 50 | 50 160 160 145 145 145 145 145 145 145 160 160 160 160 160 160 160 180 180 160 160 160 Average Speed 158 | 139 160 160 155 145 145 145 145 145 156 160 160 160 160 160 160 176 180 180 163 160 160 Slowest Speed 300 | 160 160 160 300 145 145 145 145 145 165 160 160 160 160 160 160 180 180 180 180 160 160 Overloaded Moves . | . . . . . . . . . . . . . . . . . . . . . . Propulsion Burnouts . | . . . . . . . . . . . . . . . . . . . . . . Robots Hopped . | . . . . . . . . . . . . . . . . . . . . . . Cave-ins Triggered 1 | . . . . . . . . . . . . . . . . . . . . . 1 Exploration Rate (%) 60 | 3 88 97 79 73 72 97 54 71 32 62 52 80 52 54 6 89 8 86 65 79 27 Regions Visited 21 Branch Regions 14 Pre-discovered Areas 5 | . . 1 . . 1 . . . . . . 2 . 1 . . . . . . . Known Exits Taken 4 | . 1 1 . 1 . . . . 1 . . . . . . . . . . . . Unknown Exits Taken 15 | 1 . . 1 . 1 1 1 1 . 1 1 1 1 1 . . 1 1 1 1 . Scrap Searched 11 | . . 2 . 1 . 1 . . . 2 1 2 . 2 . . . . . . . Spaces Dug 16 | . . . . . . 7 . . . . . . . . . . . . . . 9 Terrain Destroyed 985 | . . . . 4 . 53 100 48 137 17 55 . 32 19 65 1 . 11 32 21 390 Melee . | . . . . . . . . . . . . . . . . . . . . . . Projectile 495 | . . . . . . 21 79 48 46 17 55 . 24 19 20 1 . 11 32 21 101 AOE 490 | . . . . 4 . 32 21 . 91 . . . 8 . 45 . . . . . 289 Actions | -11 -10 -10 -9 -9 -9 -8 -8 -8 -7 -7 -7 -7 -7 -6 -6 -6 -6 -6 -6 -6 -6 --------- Run | Scr Mat Min Mat Min Exi Min Mat Sto Fac Low Low Zio Dee Pro Fac Was Fac Ext Cet Arc Hub Total 10534 | 59 675 817 1080 233 309 397 890 404 1180 392 392 811 278 331 337 300 162 833 257 80 317 Wait 598 | . 40 285 80 . 1 10 42 31 52 . 1 . . 10 2 13 9 8 3 . 11 Move 8788 | 48 530 501 841 221 300 351 767 321 1046 365 352 809 247 295 243 249 153 643 184 70 252 Hop . | . . . . . . . . . . . . . . . . . . . . . . Pick Up 22 | . 2 . 3 . 1 . 2 2 4 . . 1 . 2 . 1 . 2 . . 2 Fast Attach 54 | 6 1 . 24 . 1 . 2 . 5 . . . 2 . 3 3 . . 7 . . Attach 3 | . . . . . . . . 1 2 . . . . . . . . . . . . Detach 1 | . . . . . . . . . 1 . . . . . . . . . . . . Swap 33 | . 6 . 7 2 . 3 2 . 3 . . . 2 . 3 . . 2 . . 3 Drop 60 | . 6 . 14 . 5 . 2 1 9 . . 1 2 2 3 6 . 1 6 . 2 Fire 488 | 5 61 18 67 8 . 21 53 28 37 15 22 . 21 13 28 15 . 14 21 7 34 Melee . | . . . . . . . . . . . . . . . . . . . . . . Ram . | . . . . . . . . . . . . . . . . . . . . . . Kick . | . . . . . . . . . . . . . . . . . . . . . . Crush 49 | . 2 5 12 1 . 2 5 8 7 . . . . . 2 . . 3 . . 2 Escape Stasis 11 | . . . . . . . . . . . . . . . . . . 11 . . . Rewire 138 | . . . . . . . . 2 . . . . . . . . . 136 . . . Trap . | . . . . . . . . . . . . . . . . . . . . . . Miscellaneous 289 | . 27 8 32 1 1 10 15 10 14 12 17 . 4 9 53 13 . 13 36 3 11 Route ------- -11/Scrapyard -10/Materials (discovered 5 exits: *Mat x3 / *Min x2) -10/Mines (discovered 2 exits: *Mat x2) -9/Materials (discovered 4 exits: *Mat x3 / [*Min]) -9/Mines (discovered 2 exits: *Mat / *Exi) -9/Exiles -8/Mines (discovered 2 exits: *Mat x2) -8/Materials (discovered 2 exits: *Fac / *Sto) -8/Storage -7/Factory (discovered 2 exits: *Fac / *Low) -7/Lower Caves -7/Lower Caves -7/Zion -7/Deep Caves -6/Proximity Caves -6/Factory -6/Waste -6/Factory -6/Extension (discovered 2 exits: [*Fac] / *Cet) -6/Cetus (discovered 2 exits: [*Fac] / [*Arc]) -6/Archives (discovered 3 exits: [*Fac] / *Hub x2) -6/Hub_04(d) (discovered 1 exit: [*Fac]) History --------- Turn | Location | Event 4 | -11/Scrapyard | Upgraded with Propulsion slot (x1) 4 | -11/Scrapyard | Upgraded with Weapon slot (x2) 29 | -11/Scrapyard | Discovered new exit (range 14) 93 | -11/Scrapyard | Entered Materials 275 | -10/Materials | Discovered new exit (range 9) 281 | -10/Materials | Identified exit to Mines 303 | -10/Materials | Build established: Gunner 571 | -10/Materials | Reached level 2 595 | -10/Materials | Discovered new exit (range 8) 669 | -10/Materials | Upgraded with Weapon slot (x1) 691 | -10/Materials | Build established: Tank 1086 | -10/Materials | Discovered new exit (range 16) 1216 | -10/Materials | Entered Mines 1258 | -10/Mines | Learned location of Recycling (-8) 1264 | -10/Mines | Discovered new exit (range 9) 1277 | -10/Mines | Identified exit to Materials 1303 | -10/Mines | Met a Derelict bent on vengeance 1386 | -10/Mines | Excavation squad dispatched 1386 | -10/Mines | A large section of the Mines collapsed 1544 | -10/Mines | Reached level 3 2382 | -10/Mines | Entered Materials 2384 | -9/Materials | Reached level 4 2710 | -9/Materials | Reached level 5 2752 | -9/Materials | Build established: Gunner 2922 | -9/Materials | Discovered new exit (range 16) 3263 | -9/Materials | Destroyed 7 combat bots 3334 | -9/Materials | Reached level 6 3376 | -9/Materials | Discovered new exit (range 15) 3545 | -9/Materials | Repaired Hvy. Assault Rifle 3579 | -9/Materials | Repaired Hvy. Assault Rifle 3696 | -9/Materials | Discovered new exit (range 15) 3814 | -9/Materials | Reached level 7 3846 | -9/Materials | Upgraded with Weapon slot (x2) 3898 | -9/Materials | Discovered new exit (range 6) 3926 | -9/Materials | Upgraded with Weapon slot (x1) 4101 | -9/Materials | Entered Mines 4128 | -9/Mines | Discovered new exit (range 14) 4146 | -9/Mines | Build established: Executioner 4162 | -9/Mines | Found a hidden stash of uninstalled traps 4254 | -9/Mines | Learned Materials stockpile data 4263 | -9/Mines | Identified exit to Exiles 4282 | -9/Mines | Received a Rocket Launcher from a helpful Derelict 4345 | -9/Mines | Assembled infested the area 4350 | -9/Mines | Assisted by a Guerilla fighting off Assembled 4384 | -9/Mines | Destroyed 11 combat bots 4442 | -9/Mines | Deemed a non-threat by the Exiles lab entrance 4448 | -9/Mines | Entered Exiles 4448 | -9/Exiles | Accompanied by 1 ally 4478 | -9/Exiles | Led the pair of lost Derelicts to a safe place 4483 | -9/Exiles | Met 8R-AWN 4509 | -9/Exiles | Met EX-HEX 4549 | -9/Exiles | Met EX-BIN 4566 | -9/Exiles | Aligned with FarCom system 4567 | -9/Exiles | Given EX-Vault access code 4601 | -9/Exiles | Opened EX-Vault 4620 | -9/Exiles | Found XL Autogun Array 4653 | -9/Exiles | Warned to stay clear of 0b10 Research branches 4701 | -9/Exiles | Met EX-DEC 4708 | -9/Exiles | Learned location of Zion (-7) 4872 | -9/Exiles | Discovered new exit (range 14) 4890 | -9/Exiles | Left Exiles lab with XL Autogun Array 4890 | -9/Exiles | Entered Mines 4890 | -8/Mines | Accompanied by 1 ally 4892 | -8/Mines | Reached level 8 4894 | -8/Mines | Discovered new exit (range 28) 4895 | -8/Mines | Discovered new exit (range 24) 5384 | -8/Mines | Reached level 9 5467 | -8/Mines | Entered Materials 5469 | -8/Materials | Reached level 10 5646 | -8/Materials | Repaired Autogun 5827 | -8/Materials | Upgraded with Utility slot (x1) 5874 | -8/Materials | Reached level 11 5941 | -8/Materials | Discovered new exit (range 15) 6156 | -8/Materials | Reached level 12 6179 | -8/Materials | Destroyed 10 combat bots 6296 | -8/Materials | Discovered new exit (range 7) 6754 | -8/Materials | Entered Storage 7078 | -8/Storage | Reached level 13 7078 | -8/Storage | Garrison activated, responded to threat 7080 | -8/Storage | Upgraded with Utility slot (x1) 7148 | -8/Storage | Destroyed 7 combat bots 7279 | -8/Storage | Discovered new exit (range 7) 7331 | -8/Storage | Entered Factory 7332 | -7/Factory | Identified exit to Lower Caves 7333 | -7/Factory | Reached level 14 7387 | -7/Factory | Upgraded with Weapon slot (x1) 8121 | -7/Factory | Reached level 15 8129 | -7/Factory | Upgraded with Utility slot (x1) 8187 | -7/Factory | Discovered new exit (range 8) 8531 | -7/Factory | First assault squad dispatched 8994 | -7/Factory | Fabricated Enh. Autogun? 9146 | -7/Factory | Entered Lower Caves 9174 | -7/Lower Caves | Reached level 16 9178 | -7/Lower Caves | Learned Factory security intel 9354 | -7/Lower Caves | Encountered a Warlord checkpoint 9617 | -7/Lower Caves | Spotted B-75 Beast 9624 | -7/Lower Caves | Destroyed B-75 Beast 9761 | -7/Lower Caves | Discovered new exit (range 8) 9772 | -7/Lower Caves | Entered another Lower Caves area 10275 | -7/Lower Caves | Attracted the attention of an 0b10 checkpoint 10310 | -7/Lower Caves | Destroyed 10 combat bots 10316 | -7/Lower Caves | Discovered new exit (range 14) 10397 | -7/Lower Caves | Entered Zion 10501 | -7/Zion | System corruption cleaned by Quarantine Array 10578 | -7/Zion | Learned Factory recycling unit intel 10596 | -7/Zion | Learned 4 Factory zone layouts 10801 | -7/Zion | Acquired unknown access codes intercepted by a Zionite 10901 | -7/Zion | Learned Factory emergency access door positions 11121 | -7/Zion | Rebuked by Imprinter 11265 | -7/Zion | Learned location of Warlord (-4) 11469 | -7/Zion | Learned location of Armory (-3) 11658 | -7/Zion | Opened final containment barrier to the Deep Caves 11684 | -7/Zion | Discovered new exit (range 3) 11684 | -7/Zion | Saw the warning signs outside the Deep Caves entrance 11693 | -7/Zion | Entered Deep Caves 11695 | -7/Deep Caves | Reached level 17 11812 | -7/Deep Caves | Attacked by Z-Imprinter 11829 | -7/Deep Caves | Destroyed Z-Imprinter 11830 | -7/Deep Caves | Core integrity fell below 50% 11923 | -7/Deep Caves | Z-Facility disabled 12126 | -7/Deep Caves | Discovered new exit (range 10) 12140 | -7/Deep Caves | Entered Proximity Caves 12266 | -6/Proximity Caves | Upgraded with Utility slot (x1) 12488 | -6/Proximity Caves | Reached level 18 12625 | -6/Proximity Caves | Discovered new exit (range 15) 12629 | -6/Proximity Caves | Learned Factory machine intel 12647 | -6/Proximity Caves | Learned location of Extension (-6) 12660 | -6/Proximity Caves | Entered Factory 12661 | -6/Factory | Core integrity fell below 50% 12664 | -6/Factory | Loaded intel: 221 machine locations 12665 | -6/Factory | Loaded intel: 6 recycling unit locations 12992 | -6/Factory | Discovered new exit (range 9) 13058 | -6/Factory | Reached level 19 13170 | -6/Factory | Sucked down chute 13170 | -6/Factory | Entered Waste 13182 | -6/Waste | Spotted C-40 Crusher 13230 | -6/Waste | Spotted C-40 Crusher 13235 | -6/Waste | Destroyed C-40 Crusher 13247 | -6/Waste | Spotted C-40 Crusher 13250 | -6/Waste | Destroyed C-40 Crusher 13252 | -6/Waste | Spotted C-40 Crusher 13254 | -6/Waste | Destroyed C-40 Crusher 13258 | -6/Waste | Destroyed C-40 Crusher 13260 | -6/Waste | Spotted C-40 Crusher 13267 | -6/Waste | Destroyed C-40 Crusher 13276 | -6/Waste | Destroyed C-40 Crusher 13287 | -6/Waste | Upgraded with Utility slot (x1) 13288 | -6/Waste | Found Damper Plating 13377 | -6/Waste | Warlord forces began an assault 13578 | -6/Waste | Build established: Scavenger-Executioner 13580 | -6/Waste | Discovered new exit (range 16) 13674 | -6/Waste | Entered Factory 13674 | -6/Factory | Accompanied by 15 allies 13926 | -6/Factory | Discovered new exit (range 17) 13959 | -6/Factory | Entered Extension 13959 | -6/Extension | Accompanied by 13 allies 14054 | -6/Extension | Reached level 20 14221 | -6/Extension | Rescued a captive Derelict 14222 | -6/Extension | Rescued a captive Derelict 14318 | -6/Extension | Rescued a captive Derelict 14399 | -6/Extension | Rescued a captive Derelict 14583 | -6/Extension | Disrupted transfer network 14725 | -6/Extension | Spotted B-75 Beast 14737 | -6/Extension | Allies destroyed B-75 Beast 14743 | -6/Extension | Spotted B-75 Beast 14752 | -6/Extension | Allies destroyed B-75 Beast 14819 | -6/Extension | Rescued a captive Derelict 14857 | -6/Extension | Rescued a captive Derelict 15009 | -6/Extension | First assault squad dispatched 15040 | -6/Extension | Rescued A7 15116 | -6/Extension | Reached level 21 15255 | -6/Extension | Discovered new exit (range 10) 15256 | -6/Extension | Discovered new exit (range 6) 15323 | -6/Extension | Entered Cetus 15323 | -6/Cetus | Accompanied by 6 allies 15328 | -6/Cetus | Acquired a Cetus Manufacturing Module code from A7 15347 | -6/Cetus | Spotted Cetus Guard 15347 | -6/Cetus | Spotted Cetus Guard 15350 | -6/Cetus | Spotted Cetus Guard 15351 | -6/Cetus | Destroyed Cetus Guard 15351 | -6/Cetus | Spotted Cetus Guard 15355 | -6/Cetus | Destroyed Cetus Guard 15356 | -6/Cetus | Destroyed Cetus Guard 15364 | -6/Cetus | Destroyed Cetus Guard 15411 | -6/Cetus | Upgraded with Propulsion slot (x2) 15542 | -6/Cetus | Discovered new exit (range 17) 15581 | -6/Cetus | Destroyed Cetus Guard 15583 | -6/Cetus | Spotted Cetus Guard 15585 | -6/Cetus | Allies destroyed Cetus Guard 15586 | -6/Cetus | Spotted Cetus Guard 15590 | -6/Cetus | Destroyed Cetus Guard 15592 | -6/Cetus | Destroyed Cetus Guard 15605 | -6/Cetus | Discovered new exit (range 17) 15616 | -6/Cetus | Met Revision 17 15728 | -6/Cetus | Entered Archives 15728 | -6/Archives | Accompanied by 2 allies 15784 | -6/Archives | Discovered new exit (range 17) 15804 | -6/Archives | Discovered new exit (range 17) 15823 | -6/Archives | Discovered new exit (range 17) 15863 | -6/Archives | Entered Hub_04(d) 15863 | -6/Hub_04(d) | Accompanied by 1 ally 16255 | -6/Hub_04(d) | Discovered new exit (range 10) 16255 | -6/Hub_04(d) | Garrison activated, responded to threat 16312 | -6/Hub_04(d) | Destroyed 9 combat bots 16340 | -6/Hub_04(d) | Network Hub disabled 16340 | -6/Hub_04(d) | Reached level 22 16340 | -6/Hub_04(d) | Network Hub disabled 16340 | -6/Hub_04(d) | Spotted Lightning 16340 | -6/Hub_04(d) | Spotted Lightning 16341 | -6/Hub_04(d) | Disrupted transfer network 16341 | -6/Hub_04(d) | Spotted Lightning 16351 | -6/Hub_04(d) | Spotted Lightning 16351 | -6/Hub_04(d) | Spotted Lightning 16351 | -6/Hub_04(d) | Spotted Lightning 16351 | -6/Hub_04(d) | Spotted Lightning 16351 | -6/Hub_04(d) | Spotted Lightning 16351 | -6/Hub_04(d) | Spotted Lightning 16354 | -6/Hub_04(d) | Spotted Lightning 16359 | -6/Hub_04(d) | Destroyed Lightning 16359 | -6/Hub_04(d) | Spotted Lightning 16370 | -6/Hub_04(d) | Spotted Lightning 16370 | -6/Hub_04(d) | Destroyed Lightning 16373 | -6/Hub_04(d) | Destroyed Lightning 16373 | -6/Hub_04(d) | Destroyed Lightning 16387 | -6/Hub_04(d) | Destroyed Lightning 16390 | -6/Hub_04(d) | Destroyed Lightning 16392 | -6/Hub_04(d) | Crushed by falling debris 16392 | -6/Hub_04(d) | Smashed by cave-in Last Messages --------------- 16386_ Critical hit. 16386_ Acquired 96 matter. 16387_ Slug penetrates Lightning. 16387_ Lightning suffers critical hit. 16387_ Lightning destroyed. 16387_ Switching to secondary target: G-50 Soldier. 16388_ Acquired 134 matter. 16388_ Penetrated by EMDS Slug. 16390_ Slug penetrates Lightning. 16390_ G-67 Veteran suffers critical hit. 16390_ Destroyed Plasma Rifle. 16390_ Slug penetrates Lightning. 16390_ Lightning suffers critical hit. 16390_ Lightning destroyed. 16390_ G-67 Veteran suffers critical hit. 16390_ G-67 Veteran destroyed. 16390_ Switching to secondary target: G-50 Soldier. 16390_ G-50 Soldier destroyed. 16392_ The unstable cave ceiling collapses. 16392_ Crushed by falling debris. Map ----- +----------------------------------------------------+ | ???????# #????????????????????????????????????? | | ??????## ##????????????????????????????????????? | | ??????# #???#+########???????????????????????? | | ??????# ##### #? ???????????????????? | | ??????# +=""" #? #??????????????????? | | ??????# = #####!% ! #? #??????????????????? | | ????? # =% #???#%""" #? +??????????????????? | | ????? # ##???#== ## #??????????????????? | | ??? ## ##??##=!"" ## #??###?????????????? | | ]??? ##!%=##?# # ## #?? ?????????????? | | ? ## ! ### ## "" ## #? ?????????????? | | ? ?# ## #?# #=! C#; """?????????????? | | ??# # #?###;;#+;;==!%* ; """"? ? ????????? | | ##+##### ##??# ! [k%* ; """ ?????????? | | =*=##??# < = = ^= [ + "" ??????????? | | %=##### !=% # ????????????? | | *%%[ # #### *== % # ??????????????? | | #########+#####;# [%! ###???????????????? | | ?## ; " =[%!* ##???????????????? | | ??# # !*!%[ ##???????????????? | | ??# """ """ " ; [=%!!!"!= "#???? ; ???????? | | ??# ; =%=%=*%=!%! #### ; ???????? | | ??###############;; !]%%g%=g* ;;;;;; ??????? | | ????????? ;%%hhh%%h!! | ; ??????? | | ?????????? ; !h!%!]!%= ??????? | | ????????????? """ # #!!*@=!; ;; ;;; ??????? | | ????????????????G # ##[!=%!######## ??????? | | ????????????????" # #h*! ; #??????????????? | | ????????????????? + #; = # "" #??????????????? | | ??????????????????# ;# +? #??????????????? | | ??????????????????# ## # ?"" #??????????????? | | ??????????????????# ?# # ? #??????????????? | | ??????????????????# ??# #?+#?##??????????????? | | ??????????????????#???#######????????????????????? | | ?????????????????????????????????????????????????? | | ????????????Y??????w?????????????????????????????? | | ?????????????????????????????????????????????????? | | ?????????????????????????????????????????????????? | | ?????????????????????????????????????????????????? | | ?????????????????????????????????????????????????? | | ?????????????????????????????????????????????????? | | ?????????????????????????????????????????????????? | | ?????????????????????????????????????????????????? | | ?????????????????????????????????????????????????? | | ?????????????????????????????????????????????????? | | ?????????????????????????????????????????????????? | | ?????????????????????????????????????????????????? | | ?????????????????????????????????????????????????? | | ?????????????????????????????????????????????????? | | ?????????????????????????????????????????????????? | +----------------------------------------------------+ Best States ------------- Heat Dissipation 105 Energy Generation 32 Energy Capacity 350 Matter Stores 440 Matter Capacity 600 Sight Range 17 Terrain Scan Density 10 Armor Coverage 2400 Resistance: KI 20 Resistance: TH 20 Resistance: EX 15 Resistance: EM 90 Evasion (%) 40 Targeting Accuracy 8 Target Analysis 5 Core Analysis 6 Recoil Reduction 4 Kinecelleration 30 Offensive Hacking 5 Defensive Hacking 5 Item Schematics ----------------- Enh. Autogun | -8/Materials | Scanalyzed Riot Gun | -7/Zion | Free Barrage Gun | -7/Zion | Free Ripper | -7/Zion | Free Matter Neutralizer | -6/Extension | Hacked Robot Schematics ------------------ None Fabricated ------------ Enh. Autogun | x1 | -7/Factory Alien Tech Used ----------------- None Achievements -------------- None Challenges ------------ None RPGLIKE | -11 -10 -10 -9 -9 -9 -8 -8 -8 -7 -7 -7 -7 -7 -6 -6 -6 -6 -6 -6 -6 -6 --------- Run | Scr Mat Min Mat Min Exi Min Mat Sto Fac Low Low Zio Dee Pro Fac Was Fac Ext Cet Arc Hub Levels Raised 21 | . 1 1 4 . . 2 3 1 2 1 . . 1 1 1 . . 2 . . 1 XP Earned 34825 | 3000 2455 1250 5708 500 350 2300 4564 1486 3480 652 792 220 460 1321 1714 67 733 2219 436 190 928 XP Spent 32145 | 1800 2300 400 7175 . . 1550 5850 1100 3800 150 . . 570 1400 . 2900 . 1250 1900 . . Upgrades 53 | 3 6 1 9 . . 7 9 2 4 1 . . 3 1 . 4 . 1 2 . . Propulsion Slot 3 | 1 . . . . . . . . . . . . . . . . . . 2 . . Utility Slot 5 | . . . . . . . 1 1 1 . . . . 1 . 1 . . . . . Weapon Slot 7 | 2 1 . 3 . . . . . 1 . . . . . . . . . . . . Heat Dissipation 9 | . . . . . . 5 . . . 1 . . 3 . . . . . . . . Energy Generation 1 | . . . . . . . . 1 . . . . . . . . . . . . . Matter Storage 2 | . . . 2 . . . . . . . . . . . . . . . . . . Inventory Capacity 5 | . 2 . 1 . . . 1 . . . . . . . . . . 1 . . . Sight Range 1 | . . . . . . . . . . . . . . . . 1 . . . . . Ranged Accuracy 3 | . . 1 . . . . . . . . . . . . . 2 . . . . . Hack Attack % 1 | . . . . . . . . . 1 . . . . . . . . . . . . Hack Defense % 1 | . . . . . . . . . 1 . . . . . . . . . . . . KI Resistance % 4 | . 1 . 1 . . 1 1 . . . . . . . . . . . . . . TH Resistance % 4 | . 1 . 1 . . 1 1 . . . . . . . . . . . . . . EX Resistance % 3 | . 1 . 1 . . . 1 . . . . . . . . . . . . . . KI Damage % 4 | . . . . . . . 4 . . . . . . . . . . . . . . Protomatter Created 4702 | . 336 131 439 6 . 71 397 247 364 86 280 . 24 124 544 386 . 195 334 72 666 Integrity Restored 5934 | . 562 158 640 24 . 213 273 206 254 254 321 . 72 201 1149 305 . 250 775 56 221 Core 3714 | . 550 101 523 24 . 213 163 151 211 236 119 . 72 201 520 . . 196 279 56 99 Parts 2220 | . 12 57 117 . . . 110 55 43 18 202 . . . 629 305 . 54 496 . 122 Protomatter Decayed 2621 | . 146 75 221 19 . . 136 88 237 . 170 . . 57 154 88 49 772 171 53 185 Game ------ Seed ArchitectMobileWell Manual? 0 Play Time 01:24:20 Cumulative 390.8 hours Start 2019.12.17 @ 12:03:42 End 2019.12.17 @ 13:25:21 Sessions 1 Manual Loads 0 Difficulty Rogue Special Mode Winter2019/RPGLIKE Game No. 697 Rogue 697 Adventurer 0 Explorer 0 Win Type - Total 28 Types 21/0/3/3/1/0/0 Lore% 93 Gallery% 90 Achievement% 79 Wizard Run 0 Options --------- ASCII 1 Keyboard 0 Movement Numpad Keybinds 0 Fullscreen 0 Font 14/SmallcapsGlow Map View 76x50 Tactical HUD 1 Map Filters NONE Filters NONE Steam 1 RUN: e8ddc983-e1b2-4528-b8af-6e0ab9bbcc29